Cogmind - Beta 16.1 @@@ ROGUE MODE // 2026.04.06 @ 21:20:11 Player: ae Result: Destroyed by as-83429 with Assembled Rifle Performance ------------- Evolutions (0) 0 Regions Visited (2) 400 Robots Destroyed (3) 15 Value Destroyed (20) 20 Prototype IDs (0) 0 Alien Tech Used (0) 0 Bonus (0) 0 TOTAL SCORE: 435 Bonus ------- None Cogmind --------- Core Integrity 0/250 Matter 300/300 Energy 99/100 System Corruption 1% Temperature Cool (0) Movement Core (50) Location -10/Mines Parts ------- > --- POWER (1) -------- (None) > --- PROPULSION (2) --- (None) > --- UTILITY (2) ------ Sensor Array > --- WEAPON (2) ------- (None) > --- INVENTORY (5) ---- Light Ion Engine Light Ion Engine Small Laser Assault Rifle Enhanced Flamer Peak State ------------ > --- POWER ------------ (None) > --- PROPULSION ------- Light Treads Light Treads > --- UTILITY ---------- Seismic Detector > --- WEAPON ----------- Assault Rifle Light Assault Rifle > --- INVENTORY -------- Light Ion Engine Light Ion Engine Small Laser [Rating: 5] Favorites ----------- Power None Propulsion Light Treads Treads Light Treads Utility Sensor Array Device Sensor Array Weapon Light Assault Rifle Ballistic Gun Light Assault Rifle Build | -11 -10 -10 ------- Run | Yrd Mat Min Slots Evolved . | . . . Power . | . . . Propulsion . | . . . Utility . | . . . Weapon . | . . . Parts Attached 6 | 5 1 . Power . | . . . Engine . | . . . Core . | . . . Reactor . | . . . Propulsion 2 | 2 . . Treads 2 | 2 . . Leg . | . . . Wheel . | . . . Hover . | . . . Flight . | . . . Utility 2 | 1 1 . Device 2 | 1 1 . Storage . | . . . Processor . | . . . Hackware . | . . . Protection . | . . . Artifact . | . . . Weapon 2 | 2 . . Energy Gun . | . . . Energy Cannon . | . . . Ballistic Gun 2 | 2 . . Ballistic Cannon . | . . . Launcher . | . . . Special Weapon . | . . . Impact Weapon . | . . . Slashing Weapon . | . . . Piercing Weapon . | . . . Special Melee Weapon . | . . . Unidentified Prototypes . | . . . Parts Lost 4 | . . 4 Power . | . . . Propulsion 2 | . . 2 Utility 1 | . . 1 Weapon 1 | . . 1 Highest Loss Streak 3 | . . 3 To Critical Strikes . | . . . Average Backups 3 | 1 4 4 Power 1 | 1 2 2 Propulsion . | . . . Utility . | . . . Weapon 1 | . 2 2 Tool/Special . | . . . Unused Backups 4 | . . 4 Power 2 | . . 2 Propulsion . | . . . Utility . | . . . Weapon 2 | . . 2 Tool/Special . | . . . Average Slot Usage (%) 61 | . 69 52 Treads 26 | . 28 23 Device 21 | . 26 16 Ballistic Gun 13 | . 14 11 Peak Build Rating 5 | 5 5 5 Average Rating 4 | 3 4 3 On Entrance 3 | . 4 5 Avg Prop Armor Cover (%) 31 | 26 31 32 Naked Turns . | . . . Heaviest Build 3 | 3 3 3 Greatest Support 40 | 40 3 3 Greatest Overweight (x) . | . . . Average Overweight (x) . | . . . Largest Inventory Capacity 5 | 5 5 5 Average Capacity 5 | 5 5 5 Most Carried 5 | 4 5 5 Average Carried 3 | 1 4 4 Final Capacity 5 | 5 5 5 Final Carried 5 | 4 4 5 Class Distribution -------------------- 100% | Mutant Dominant Class ---------------- Mutant | -10/Materials Mutant | -10/Mines Resources | -11 -10 -10 ----------- Run | Yrd Mat Min Matter Collected 291 | 284 . 7 Remotely . | . . . Salvage Created 121 | 121 . . Parts 7 | 7 . . Haulers Intercepted . | . . . Recyclers Shooed . | . . . Parts Field Recycled . | . . . Retrieved Matter . | . . . Parts Self-Destructed . | . . . Prevented . | . . . Parts Restored . | . . . Kills | -11 -10 -10 ------- Run | Yrd Mat Min Combat Hostiles Destroyed 1 | . . 1 Guns 1 | . . 1 Classes Destroyed 3 | 2 . 1 Tunneler 2 | 2 . . Recycler 1 | 1 . . Assembled 1 | . . 1 Best Kill Streak 2 | 2 . 1 Combat Bots Only 1 | . . 1 Max Kills in Single Turn 1 | 1 . 1 Gunslinging . | . . . Exploded . | . . . Melee . | . . . Uniques/NPCs Destroyed . | . . . Combat | -11 -10 -10 -------- Run | Yrd Mat Min Hostile Shots Fired 54 | . 3 51 Missed 17 | . 2 15 Hits 37 | . 1 36 Melee 7 | . . 7 Projectile 30 | . 1 29 Damage Taken 676 | . 38 638 Core 260 | . 8 252 Absorbed by Shields . | . . . Core Remaining (%) 100 | 100 . . Volleys Fired 15 | 11 . 4 Largest 2 | 2 . 2 Hottest 40 | 40 . 40 Shots Fired 30 | 22 . 8 Gun 30 | 22 . 8 Cannon . | . . . Launcher . | . . . Special . | . . . Kinetic 30 | 22 . 8 Thermal . | . . . Explosive . | . . . Electromagnetic . | . . . Robot Hit Streak 6 | 6 . 4 Robot Miss Streak 3 | 3 . 2 Penetration Max . | . . . Secondary Targets . | . . . Shots Hit Robots 19 | 14 . 5 Core Hits 8 | 6 . 2 Critical Kills 1 | 1 . . Critical Parts Destroyed . | . . . Critical Strikes 1 | 1 . . Destroy 1 | 1 . . Melee Attacks . | . . . Impact . | . . . Slashing . | . . . Piercing . | . . . Sneak Attacks . | . . . Combat Hostiles . | . . . Follow-up Attacks . | . . . Damage Inflicted 201 | 141 7 53 Guns 190 | 141 . 49 Cannons . | . . . Explosions . | . . . Melee . | . . . Ramming 11 | . 7 4 Kinetic 190 | 141 . 49 Thermal . | . . . Explosive . | . . . Electromagnetic . | . . . Impact . | . . . Slashing . | . . . Piercing . | . . . Highest Corruption 1 | . 1 1 Average Corruption 1 | . 1 1 Corruption Purged . | . . . Corruption Blocked . | . . . Effects 3 | . 2 1 Message Errors 2 | . 1 1 Matter Fused 1 | . 1 . Overload Shots . | . . . Overflow Damage . | . . . Projectiles . | . . . Explosions . | . . . Melee . | . . . Knockbacks . | . . . Impact . | . . . Kinetic . | . . . Secondary . | . . . Self-Inflicted Damage 3 | . 3 . Shots . | . . . Rammed 13 | . 4 9 Targets Rammed 13 | . 4 9 Kicked . | . . . Crushed . | . . . Highest Temperature . | . . . Average Temperature . | . . . Received Heat Transfer 6 | . 6 . Siege Activations . | . . . Martial Activations . | . . . Shielding Activations . | . . . Robots Disrupted . | . . . Combat Hostiles . | . . . Robots Corrupted . | . . . Combat Hostiles . | . . . Parts Fried . | . . . Impact Corruptions . | . . . Robots Melted . | . . . Combat Hostiles . | . . . Parts Melted . | . . . Heat Transferred . | . . . Parts Sabotaged . | . . . Parts Stolen . | . . . Parts Stripped . | . . . Power Chain Reactions . | . . . Alert | -11 -10 -10 ------- Run | Yrd Mat Min Maximum Alert Level . | . . . Low Security (%) 100 | 100 100 100 Level 1 . | . . . Level 2 . | . . . Level 3 . | . . . Level 4 . | . . . Level 5 . | . . . High Security . | . . . Max Security . | . . . Peak Influence 60 | 5 60 7 Initial 7 | . 3 7 Average 9 | 1 21 . Influence Increases 75 | 15 60 . Destroy 0b10 Robot/NC 15 | 15 . . Lose Combat Pursuer 60 | . 60 . Influence Decreases 75 | 10 45 20 Entered New Map 15 | . 2 13 Time Decay 53 | 10 43 . Lost Part 7 | . . 7 Squads Dispatched 1 | . 1 . Investigation . | . . . Extermination . | . . . Reinforcement 1 | . 1 . Assault . | . . . Garrison . | . . . Intercept . | . . . Searches Triggered . | . . . Construction Impeded . | . . . Haulers Reinforced . | . . . Active Scanning Responses . | . . . Cargo Convoy Interrupts . | . . . Stealth | -11 -10 -10 --------- Run | Yrd Mat Min Distress Signals 2 | . 1 1 Communications Jammed . | . . . Distress Signals . | . . . Times Spotted 40 | . 12 28 Peak Tracking Total 20 | . 6 20 Tactical Retreats 5 | . 1 4 Traps | -11 -10 -10 ------- Run | Yrd Mat Min Traps Triggered 1 | . 1 . Indirectly . | . . . Trap Hack Attempts . | . . . Triggered . | . . . Disarmed . | . . . Reprogrammed . | . . . Reused . | . . . Traps Extracted . | . . . Installed . | . . . Triggered . | . . . Machines | -11 -10 -10 ---------- Run | Yrd Mat Min Machines Disabled . | . . . Max in Single Turn . | . . . Machines Repaired . | . . . Machines Dismantled . | . . . Machines Sabotaged . | . . . Overloaded Fab Kills . | . . . Hacking | -11 -10 -10 --------- Run | Yrd Mat Min Machines Accessed 1 | . 1 . Terminals 1 | . 1 . Fabricators . | . . . Repair Stations . | . . . Recycling Units . | . . . Scanalyzers . | . . . Garrison Access . | . . . Total Hacks 2 | . 2 . Successful 1 | . 1 . Failed 1 | . 1 . Catastrophic . | . . . Database Lockouts . | . . . Manual . | . . . Terminals 2 | . 2 . Fabricators . | . . . Repair Stations . | . . . Recycling Units . | . . . Scanalyzers . | . . . Garrison Access . | . . . Terminal Hacks 1 | . 1 . Registered Components 1 | . 1 . Fabricator Hacks . | . . . Repair Station Hacks . | . . . Recycling Unit Hacks . | . . . Scanalyzer . | . . . Garrison Access Hacks . | . . . Unauthorized Hacks . | . . . Terminals . | . . . Fabricators . | . . . Repair Stations . | . . . Recycling Units . | . . . Scanalyzers . | . . . Garrison Access . | . . . Data Cores Recovered . | . . . Used . | . . . Hacking Detections 1 | . 1 . Full Trace Events . | . . . Feedback Events . | . . . Feedback Blocked . | . . . Robot Schematics Acquired . | . . . Robots Built . | . . . Authchips . | . . . Time . | . . . Total Robot Build Rating . | . . . Part Schematics Acquired . | . . . Parts Built . | . . . Authchips . | . . . Time . | . . . Total Part Build Rating . | . . . Part Studies Acquired . | . . . Parts Repaired . | . . . Time . | . . . Parts Recycled . | . . . Recycled Matter . | . . . Retrieved Matter . | . . . Retrieved Components . | . . . Parts Scanalyzed . | . . . Part Schematics Acquired . | . . . Parts Damaged . | . . . Bothacking | -11 -10 -10 ------------ Run | Yrd Mat Min Used RIF Installer . | . . . Robots Hacked . | . . . Non-combat . | . . . Combat . | . . . Robot Hacks Applied . | . . . Relay Couplers Released . | . . . Fabnet Peak Effective % . | . . . Robots Rewired . | . . . Allies Hacked . | . . . Hacks Repelled . | . . . Allies | -11 -10 -10 -------- Run | Yrd Mat Min Total Allies . | . . . Largest Group . | . . . Highest-Rated Group . | . . . Highest-Rated Ally . | . . . Total Orders . | . . . Ally Attacks . | . . . Total Damage . | . . . Kills . | . . . Allies Corrupted . | . . . Allies Melted . | . . . Intel | -11 -10 -10 ------- Run | Yrd Mat Min Active Infowar (turns) 260 | 4 141 115 Sensors 245 | . 130 115 Seismic 154 | 4 140 10 Robot Analysis Total . | . . . Derelict Logs Recovered . | . . . Drone Launches . | . . . Drone Recoveries . | . . . Exploration | -11 -10 -10 ------------- Run | Yrd Mat Min Turns Passed 350 | 93 142 115 Spaces Moved 440 | 55 216 169 Core 418 | 33 216 169 Treads 22 | 22 . . Legs . | . . . Wheels . | . . . Hover . | . . . Flight . | . . . Fastest Speed 50 | 50 50 50 Average Speed 55 | 94 50 50 Slowest Speed 160 | 160 50 50 Overloaded Moves . | . . . Propulsion Burnouts . | . . . Robots Hopped . | . . . Potential Cave-ins . | . . . Cave-ins Triggered . | . . . Exploration Rate (%) 26 | 4 43 31 Regions Visited 2 Branch Regions 1 Pre-discovered Areas . | . . . Known Exits Taken . | . . . Unknown Exits Taken 2 | 1 1 . Scrap Searched . | . . . Spaces Dug . | . . . Terrain Destroyed . | . . . Melee . | . . . Projectile . | . . . AOE . | . . . Terrain Rammed . | . . . Walls Destroyed . | . . . Machines Disabled . | . . . Actions | -11 -10 -10 --------- Run | Yrd Mat Min Total 509 | 74 248 187 Wait 28 | . 26 2 Move 438 | 54 215 169 Hop . | . . . Pick Up 4 | 3 . 1 Fast Attach 6 | 5 1 . Attach 2 | . 1 1 Detach 3 | 1 1 1 Swap . | . . . Drop . | . . . Fire 15 | 11 . 4 Melee . | . . . Ram 2 | . 2 . Kick . | . . . Crush 11 | . 2 9 Escape Stasis . | . . . Rewire . | . . . Trap . | . . . Miscellaneous . | . . . Route ------- -11/Scrapyard -10/Materials (discovered 3 exits: [*Mat x2] / [*Min]) -10/Mines (discovered 1 exit: [*Mat]) History --------- Turn | Location | Event 7 | -11/Scrapyard | Discovered new exit (range 16) 94 | -11/Scrapyard | Entered Materials 133 | -10/Materials | Discovered new exit (range 13) 176 | -10/Materials | Discovered new exit (range 16) 233 | -10/Materials | Discovered new exit (range 7) 236 | -10/Materials | Entered Mines 237 | -10/Mines | Assembled infested the area 275 | -10/Mines | A weapon hastily lodged in a ceiling crevice suddenly fell to the ground 300 | -10/Mines | Build established: Mutant 340 | -10/Mines | Core integrity fell below 50% 348 | -10/Mines | Core integrity fell below 20% 348 | -10/Mines | Discovered new exit (range 15) 351 | -10/Mines | Destroyed by as-83429 with Assembled Rifle Last Messages --------------- 00275_ An Enh. Flamer has been hastily shoved under some rubble with a note attached: "One is never enough." 00276_ Acquired Enh. Flamer. 00284_ K-01 Serf collects debris. 00288_ K-01 Serf cleans the Seismic Survey Station. 00290_ as-12303 sneak attacks. 00290_ K-01 Serf system corrupted by crushing effect. 00290_ K-01 Serf knocked back. 00297_ K3A% :9Q68L4J9G IGOQJW4SMDFMM7 FH7U7F 00303_ Seismic Survey Station disabled. 00314_ Lgt. Assault Rifle destroyed. 00317_ Slammed into as-05341. 00318_ Seismic Survey Station disabled. 00318_ Slammed into as-05341. 00320_ Slammed into as-85070. 00332_ Lgt. Treads destroyed. 00344_ U-05 Engineer destroyed. 00347_ R-06 Scavenger collects Terrain Scanner. 00348_ EXIT=FOUND 00351_ R-06 Scavenger collects Lgt. Ion Engine. Map ----- +----------------------------------------------------+ | ????????????????????????????????????????????????? | | ????????????????????????????????????????????????? | | ????????????????????????????????????????????????? | | ????????????????????????????????????????????????? | | ????????????????????????????????????????????????? | | ????????????????????????????????????????????????? | | ????????????????????????????????????????????????? | | ????????????????????????????????????????????????? | | ????????????????????????????????????????????????? | | ?????????????? ?????????????????????????????????? | | ??????????????=#????????????????????????????????? | | ?????????????=*=##??????????????????????????????? | | ????????????<%!* #??????????????????????????????? | | ??????????=%==%= ??????????????????????????????? | | ???????????!=!= ##?????????????????????????????? | | ??????????##%# %! #?????????????????????????????? | | ??????????? a #?????????????????????????????? | | ???????????? #?????????????????????????????? | | ????????????? % ###???????????????????????????? | | ??????????????# % ##??????????????????????????? | | ?????????????##a ##?????????????????????????? | | ?????????????# a a ##????????????????????????? | | ?????????????# a #????????????????????????? | | ????????????## ######## #???????????????? | | ?????######## !%r #???????????????? | | ?????# < a a @ #???????????????? | | ?????## a ############???????????????? | | ??????#### #??????????????????????????? | | ?????????## ## #??????????????????????????? | | ??????????# ?###### #??????????????????????????? | | ??????????#? #????# #????###?###???????????????? | | ??????????# #????# ###### ### ##??????????????? | | ????#####?# #????# ##"""""""#??????????????? | | ???## ### #????# ### #??????????????? | | ??## ####?#### ?## ^ #??????????????? | | ?## ## #????# # ##?????????????? | | ?# ###### ###### " "#?????????????? | | ?# #????# " " #?????????????? | | ?## ##???######### ##?????????????? | | ??## ##??????????# """##??????????????? | | ???## ##?????????# " #???????????????? | | ???## #####?????## ####???????????????? | | ???# #??????## ##??????????????????? | | ???# #???????## #???????????????????? | | ???## ##### #????????####???????????????????? | | ????#######???# #???????????????????????????????? | | ??????????????# #???????????????????????????????? | | ??????????????# #???????????????????????????????? | | ??????????????# #???????????????????????????????? | | ??????????????# #???????????????????????????????? | +----------------------------------------------------+ Best States ------------- Heat Dissipation 25 Energy Generation 5 Energy Capacity 100 Matter Stores 300 Matter Capacity 300 Sight Range 16 Robot Scan Range 14 Terrain Scan Density 10 Evasion (%) 50 Recoil Reduction 2 Item Schematics ----------------- None Robot Schematics ------------------ None Fabricated ------------ Nothing Repaired ---------- Nothing Studied --------- None Alien Tech Used ----------------- None Achievements -------------- None Challenges ------------ None Game ------ Seed MetaGuidanceAutocannon Manual? 0 Play Time 00:05:17 Cumulative 187.7 hours Start 2026.04.06 @ 21:16:29 End 2026.04.06 @ 21:20:11 Sessions 1 Manual Loads 0 Difficulty Rogue Special Mode None Game No. 120 Rogue 116 Adventurer 4 Explorer 0 Win Type - Total 25 Types 24/0/1/0/0/0/0/0/0/0 Lore% 84 Gallery% 61 Achievement% 54 Wizard Run 0 Options --------- Layout 0 ASCII 0 Keyboard 1 Movement Vi Keybinds 0 Fullscreen 0 Font 16/SmallcapsGlow Map View 76x50 Zoom Use 0% Tactical HUD 1 Map Filters NONE Filters NONE Steam 1 RUN: 5b8f48d7-7e6f-4f8d-8dc8-612738f2d042